[Event "MČR v rapid šachu družstev 2019"]
[Site "Teplice, Czech Republic"]
[Date "2019.09.15"]
[Round "5.12"]
[White "Skacelik, Petr"]
[Black "Postupa, Pavel"]
[Result "1/2-1/2"]
[TimeControl "15 min. + 5s"]
[WhiteElo "2096"]
[BlackElo "2203"]

1. d4 {[%clk 00:15:08]} {[%emt 00:00:03]} Nf6 {[%clk 00:15:09]} 2. c4 {[%clk
00:15:12]} g6 {[%clk 00:15:13]} 3. Nc3 {[%clk 00:15:16]} d5 {[%clk 00:15:17]}
{[%emt 00:00:01]} 4. Bg5 {[%clk 00:15:20]} {[%emt 00:00:03]} Bg7 {[%clk
00:15:18]} {[%emt 00:00:02]} 5. e3 {[%clk 00:15:25]} {[%emt 00:00:01]} O-O
{[%clk 00:15:10]} {[%emt 00:00:13]} 6. Nf3 {[%clk 00:15:27]} {[%emt 00:00:01]}
c6 {[%clk 00:14:54]} {[%emt 00:00:22]} 7. Rc1 {[%clk 00:15:29]} {[%emt
00:00:03]} a6 {[%clk 00:14:26]} {[%emt 00:00:33]} 8. c5 {[%clk 00:15:09]}
{[%emt 00:00:25]} Bg4 {[%clk 00:14:28]} {[%emt 00:00:03]} 9. Be2 {[%clk
00:15:12]} {[%emt 00:00:02]} Nbd7 {[%clk 00:14:31]} {[%emt 00:00:01]} 10. O-O
{[%clk 00:15:11]} {[%emt 00:00:07]} h6 {[%clk 00:14:30]} {[%emt 00:00:06]} 11.
Bh4 {[%clk 00:15:15]} g5 {[%clk 00:14:31]} {[%emt 00:00:04]} 12. Bg3 {[%clk
00:15:20]} Re8 {[%clk 00:14:28]} {[%emt 00:00:07]} 13. Ne5 {[%clk 00:15:24]}
{[%emt 00:00:01]} Bxe2 {[%clk 00:14:28]} {[%emt 00:00:05]} 14. Qxe2 {[%clk
00:15:28]} Ne4 {[%clk 00:14:15]} {[%emt 00:00:17]} 15. Nxe4 {[%clk 00:14:41]}
{[%emt 00:00:53]} dxe4 {[%clk 00:14:17]} {[%emt 00:00:02]} 16. f4 {[%clk
00:13:13]} {[%emt 00:01:33]} Nxe5 {[%clk 00:13:47]} {[%emt 00:00:36]} 17. fxe5
{[%clk 00:13:15]} {[%emt 00:00:03]} Qd5 {[%clk 00:13:47]} {[%emt 00:00:04]} 18.
b3 {[%clk 00:13:10]} {[%emt 00:00:11]} Rf8 {[%clk 00:13:40]} {[%emt 00:00:12]}
19. h4 {[%clk 00:13:08]} {[%emt 00:00:08]} f6 {[%clk 00:13:39]} {[%emt
00:00:06]} 20. hxg5 {[%clk 00:12:58]} {[%emt 00:00:15]} hxg5 {[%clk 00:13:20]}
{[%emt 00:00:24]} 21. exf6 {[%clk 00:12:59]} {[%emt 00:00:04]} Rxf6 {[%clk
00:13:10]} {[%emt 00:00:14]} 22. Rxf6 {[%clk 00:12:53]} {[%emt 00:00:11]} exf6
{[%clk 00:12:50]} {[%emt 00:00:25]} 23. Qc4 {[%clk 00:12:46]} {[%emt 00:00:11]}
Qxc4 {[%clk 00:10:19]} {[%emt 00:02:36]} 24. Rxc4 {[%clk 00:12:50]} {[%emt
00:00:01]} f5 {[%clk 00:10:05]} {[%emt 00:00:18]} 25. Rb4 {[%clk 00:12:34]}
{[%emt 00:00:21]} Rd8 {[%clk 00:09:29]} {[%emt 00:00:42]} 26. Bd6 {[%clk
00:11:10]} {[%emt 00:01:28]} Rd7 {[%clk 00:09:29]} {[%emt 00:00:06]} 27. g3
{[%clk 00:11:13]} {[%emt 00:00:03]} Kf7 {[%clk 00:09:32]} {[%emt 00:00:01]} 28.
Kf2 {[%clk 00:11:13]} {[%emt 00:00:05]} Ke6 {[%clk 00:08:52]} {[%emt 00:00:45]}
29. Rc4 {[%clk 00:10:59]} {[%emt 00:00:20]} Bf6 {[%clk 00:07:55]} {[%emt
00:01:01]} 30. Rc1 {[%clk 00:10:57]} {[%emt 00:00:07]} Rh7 {[%clk 00:07:59]}
{[%emt 00:00:02]} 31. Kg2 {[%clk 00:11:01]} Bd8 {[%clk 00:07:57]} {[%emt
00:00:07]} 32. Be5 {[%clk 00:10:39]} {[%emt 00:00:27]} Ba5 {[%clk 00:07:54]}
{[%emt 00:00:08]} 33. Rc2 {[%clk 00:10:42]} {[%emt 00:00:02]} Bc7 {[%clk
00:07:22]} {[%emt 00:00:37]} 34. Bxc7 Rxc7 {[%clk 00:07:26]} 35. Rf2 {[%clk
00:10:10]} {[%emt 00:00:31]} Rh7 {[%clk 00:07:28]} {[%emt 00:00:03]} 36. Rf1
{[%clk 00:10:14]} {[%emt 00:00:02]} Rh8 {[%clk 00:07:03]} {[%emt 00:00:31]} 37.
Rf2 {[%clk 00:09:53]} {[%emt 00:00:26]} Rh7 {[%clk 00:04:51]} {[%emt 00:02:16]}
38. Rf1 {[%clk 00:09:56]} {[%emt 00:00:01]} a5 {[%clk 00:04:08]} {[%emt
00:00:48]} 39. a3 {[%clk 00:09:51]} {[%emt 00:00:10]} b6 {[%clk 00:03:37]}
{[%emt 00:00:36]} 40. cxb6 {[%clk 00:09:39]} {[%emt 00:00:18]} Rb7 {[%clk
00:03:41]} 41. Rc1 {[%clk 00:09:43]} Rxb6 {[%clk 00:03:44]} {[%emt 00:00:03]}
42. Rc3 {[%clk 00:09:48]} Kd6 {[%clk 00:03:34]} {[%emt 00:00:15]} 43. Kf2
{[%clk 00:09:49]} {[%emt 00:00:03]} Rb5 {[%clk 00:03:29]} {[%emt 00:00:09]} 44.
Ke2 {[%clk 00:09:45]} {[%emt 00:00:10]} Kd5 {[%clk 00:02:36]} {[%emt 00:00:58]}
45. Kd2 {[%clk 00:09:43]} {[%emt 00:00:07]} Kd6 {[%clk 00:02:19]} {[%emt
00:00:22]} 46. Kc2 {[%clk 00:09:47]} {[%emt 00:00:01]} Rd5 {[%clk 00:02:18]}
{[%emt 00:00:04]} 47. Rc4 {[%clk 00:09:45]} {[%emt 00:00:07]} f4 {[%clk
00:01:57]} {[%emt 00:00:27]} 48. exf4 {[%clk 00:09:45]} {[%emt 00:00:05]} gxf4
{[%clk 00:02:00]} {[%emt 00:00:01]} 49. gxf4 {[%clk 00:09:49]} {[%emt
00:00:01]} Rf5 {[%clk 00:02:04]} {[%emt 00:00:01]} 50. Rc5 {[%clk 00:09:34]}
{[%emt 00:00:20]} Rxf4 {[%clk 00:02:06]} {[%emt 00:00:04]} 51. Rxa5 {[%clk
00:09:38]} Rf2+ {[%clk 00:02:09]} {[%emt 00:00:01]} 52. Kc3 {[%clk 00:09:42]}
{[%emt 00:00:01]} e3 {[%clk 00:00:59]} {[%emt 00:01:16]} 53. Re5 {[%clk
00:09:42]} {[%emt 00:00:04]} e2 {[%clk 00:01:03]} {[%emt 00:00:02]} 54. b4
{[%clk 00:06:28]} {[%emt 00:03:19]} Rf3+ {[%clk 00:00:55]} {[%emt 00:00:13]} 55.
Kb2 {[%clk 00:06:32]} {[%emt 00:00:01]} Rd3 {[%clk 00:00:37]} {[%emt 00:00:22]}
56. Rxe2 {[%clk 00:06:34]} {[%emt 00:00:05]} Rxd4 {[%clk 00:00:40]} {[%emt
00:00:01]} 57. Kc3 {[%clk 00:06:37]} {[%emt 00:00:02]} Rh4 {[%clk 00:00:41]}
{[%emt 00:00:04]} 58. Re3 {[%clk 00:06:37]} {[%emt 00:00:05]} Kc7 {[%clk
00:00:35]} {[%emt 00:00:11]} 59. a4 {[%clk 00:06:37]} {[%emt 00:00:05]} Kb6
{[%clk 00:00:39]} {[%emt 00:00:01]} 60. Rd3 {[%clk 00:06:33]} {[%emt 00:00:09]}
Rh1 {[%clk 00:00:33]} {[%emt 00:00:11]} 61. Kc4 {[%clk 00:06:29]} {[%emt
00:00:10]} Rc1+ {[%clk 00:00:30]} {[%emt 00:00:07]} 62. Rc3 {[%clk 00:06:33]}
{[%emt 00:00:01]} Rh1 {[%clk 00:00:07]} {[%emt 00:00:28]} 63. a5+ {[%clk
00:06:33]} {[%emt 00:00:05]} Kb7 {[%clk 00:00:10]} {[%emt 00:00:01]} 64. Rd3
{[%clk 00:06:35]} {[%emt 00:00:03]} Rh7 {[%clk 00:00:14]} {[%emt 00:00:01]} 65.
Rd4 {[%clk 00:06:33]} {[%emt 00:00:07]} Rg7 {[%clk 00:00:19]} 66. Re4 {[%clk
00:06:32]} {[%emt 00:00:06]} Rh7 {[%clk 00:00:23]} {[%emt 00:00:01]} 67. Kc5
{[%clk 00:06:29]} {[%emt 00:00:08]} Rh5+ {[%clk 00:00:27]} {[%emt 00:00:02]} 68.
Kd6 {[%clk 00:06:33]} {[%emt 00:00:01]} Rd5+ {[%clk 00:00:28]} {[%emt
00:00:04]} 69. Ke6 {[%clk 00:06:35]} {[%emt 00:00:02]} Rd1 {[%clk 00:00:29]}
{[%emt 00:00:04]} 70. Ke5 {[%clk 00:06:34]} {[%emt 00:00:07]} Rd5+ {[%clk
00:00:31]} {[%emt 00:00:03]} 71. Ke6 {[%clk 00:06:38]} {[%emt 00:00:01]} Rd2
{[%clk 00:00:35]} 72. Rc4 {[%clk 00:06:24]} {[%emt 00:00:19]} Rd1 {[%clk
00:00:33]} {[%emt 00:00:05]} 73. Ke5 {[%clk 00:05:10]} {[%emt 00:01:21]} Re1+
{[%clk 00:00:20]} {[%emt 00:00:18]} 74. Kd4 {[%clk 00:05:13]} {[%emt 00:00:01]}
Rd1+ {[%clk 00:00:23]} {[%emt 00:00:03]} 75. Kc3 {[%clk 00:05:13]} {[%emt
00:00:05]} Rc1+ {[%clk 00:00:27]} 76. Kb3 {[%clk 00:05:17]} {[%emt 00:00:01]}
Rb1+ {[%clk 00:00:31]} 77. Ka2 {[%clk 00:05:21]} {[%emt 00:00:02]} Rh1 {[%clk
00:00:33]} {[%emt 00:00:02]} 78. Rc5 {[%clk 00:05:24]} {[%emt 00:00:02]} Rh3
{[%clk 00:00:36]} {[%emt 00:00:02]} 79. Kb2 {[%clk 00:05:26]} {[%emt 00:00:02]}
Rg3 {[%clk 00:00:40]} {[%emt 00:00:02]} 80. Rc3 {[%clk 00:05:30]} {[%emt
00:00:01]} Rg1 {[%clk 00:00:43]} {[%emt 00:00:02]} 81. Kb3 {[%clk 00:05:34]}
{[%emt 00:00:01]} Rb1+ {[%clk 00:00:47]} {[%emt 00:00:01]} 82. Kc4 {[%clk
00:05:38]} {[%emt 00:00:01]} Rg1 {[%clk 00:00:51]} 1/2-1/2

[Event "MČR v rapid šachu družstev 2019"]
[Site "Teplice, Czech Republic"]
[Date "2019.09.15"]
[Round "5.13"]
[White "Krejci, Jan"]
[Black "Kourousis, Epaminondas"]
[Result "0-1"]
[TimeControl "15 min. + 5s"]
[WhiteElo "2496"]
[BlackElo "2388"]

1. c4 {[%clk 00:15:08]} {[%emt 00:00:01]} Nf6 {[%clk 00:14:57]} {[%emt
00:00:13]} 2. Nf3 {[%clk 00:15:08]} {[%emt 00:00:05]} e6 {[%clk 00:15:00]}
{[%emt 00:00:03]} 3. Nc3 {[%clk 00:15:11]} {[%emt 00:00:02]} Bb4 {[%clk
00:14:54]} {[%emt 00:00:11]} 4. Qc2 {[%clk 00:15:13]} {[%emt 00:00:03]} d6
{[%clk 00:14:45]} {[%emt 00:00:14]} 5. a3 {[%clk 00:15:10]} {[%emt 00:00:09]}
Bxc3 {[%clk 00:14:41]} {[%emt 00:00:08]} 6. Qxc3 {[%clk 00:15:14]} {[%emt
00:00:02]} e5 {[%clk 00:14:09]} {[%emt 00:00:36]} 7. b4 {[%clk 00:15:13]}
{[%emt 00:00:06]} O-O {[%clk 00:14:08]} {[%emt 00:00:06]} 8. Bb2 {[%clk
00:15:17]} {[%emt 00:00:02]} b6 {[%clk 00:13:48]} {[%emt 00:00:25]} 9. e3
{[%clk 00:15:04]} {[%emt 00:00:17]} Bb7 {[%clk 00:13:50]} {[%emt 00:00:03]} 10.
Be2 {[%clk 00:15:08]} {[%emt 00:00:01]} Nbd7 {[%clk 00:13:41]} {[%emt
00:00:14]} 11. d3 {[%clk 00:14:29]} {[%emt 00:00:44]} Qe7 {[%clk 00:11:57]}
{[%emt 00:01:49]} 12. O-O {[%clk 00:14:24]} {[%emt 00:00:10]} h6 {[%clk
00:11:06]} {[%emt 00:00:56]} 13. Rfd1 {[%clk 00:14:26]} {[%emt 00:00:03]} Rae8
{[%clk 00:10:47]} {[%emt 00:00:24]} 14. a4 {[%clk 00:14:08]} {[%emt 00:00:24]}
Nh7 {[%clk 00:10:06]} {[%emt 00:00:46]} 15. a5 {[%clk 00:14:01]} {[%emt
00:00:12]} Ng5 {[%clk 00:10:06]} {[%emt 00:00:05]} 16. Nxg5 {[%clk 00:11:36]}
{[%emt 00:02:30]} Qxg5 {[%clk 00:10:07]} {[%emt 00:00:04]} 17. Bf1 {[%clk
00:11:40]} Bf3 {[%clk 00:09:41]} {[%emt 00:00:31]} 18. Re1 {[%clk 00:11:20]}
{[%emt 00:00:25]} Re6 {[%clk 00:09:33]} {[%emt 00:00:14]} 19. g3 {[%clk
00:09:50]} {[%emt 00:01:35]} Nf6 {[%clk 00:07:36]} {[%emt 00:02:02]} 20. axb6
{[%clk 00:09:16]} {[%emt 00:00:40]} axb6 {[%clk 00:07:40]} {[%emt 00:00:01]} 21.
e4 {[%clk 00:08:39]} {[%emt 00:00:42]} Ng4 {[%clk 00:06:28]} {[%emt 00:01:16]}
22. Bc1 {[%clk 00:07:41]} {[%emt 00:01:03]} Qh5 {[%clk 00:06:11]} {[%emt
00:00:22]} 23. h3 {[%clk 00:07:45]} {[%emt 00:00:01]} f5 {[%clk 00:06:06]}
{[%emt 00:00:11]} 24. exf5 {[%clk 00:06:27]} {[%emt 00:01:23]} Rxf5 {[%clk
00:05:50]} {[%emt 00:00:21]} 25. Ra2 {[%clk 00:06:30]} {[%emt 00:00:02]} Rg6
{[%clk 00:05:00]} {[%emt 00:00:54]} 26. Be3 {[%clk 00:06:26]} {[%emt 00:00:11]}
Nf6 {[%clk 00:02:14]} {[%emt 00:02:51]} 27. c5 {[%clk 00:05:32]} {[%emt
00:00:59]} bxc5 {[%clk 00:02:00]} {[%emt 00:00:19]} 28. bxc5 {[%clk 00:05:36]}
d5 {[%clk 00:02:01]} {[%emt 00:00:04]} 29. Qb3 {[%clk 00:05:01]} {[%emt
00:00:40]} Kh7 {[%clk 00:02:02]} {[%emt 00:00:04]} 30. Qb8 {[%clk 00:04:53]}
{[%emt 00:00:12]} d4 {[%clk 00:02:02]} {[%emt 00:00:04]} 31. Bc1 {[%clk
00:04:47]} {[%emt 00:00:12]} Bd5 {[%clk 00:01:33]} {[%emt 00:00:33]} 32. Ra8
{[%clk 00:04:24]} {[%emt 00:00:28]} Bxa8 {[%clk 00:00:50]} {[%emt 00:00:49]} 33.
Qxa8 {[%clk 00:04:28]} {[%emt 00:00:01]} e4 {[%clk 00:00:39]} {[%emt 00:00:16]}
34. dxe4 {[%clk 00:04:01]} {[%emt 00:00:32]} Qf3 {[%clk 00:00:34]} {[%emt
00:00:10]} 35. Qa2 {[%clk 00:02:34]} {[%emt 00:01:32]} Nxe4 {[%clk 00:00:12]}
{[%emt 00:00:27]} 36. Bg2 {[%clk 00:02:39]} Qxf2+ {[%clk 00:00:16]} {[%emt
00:00:02]} 37. Qxf2 {[%clk 00:02:43]} {[%emt 00:00:01]} Nxf2 {[%clk 00:00:20]}
38. Rf1 {[%clk 00:02:47]} {[%emt 00:00:01]} Nxh3+ {[%clk 00:00:09]} {[%emt
00:00:15]} 39. Bxh3 {[%clk 00:02:51]} Rxg3+ {[%clk 00:00:11]} {[%emt 00:00:03]}
40. Kh2 {[%clk 00:02:28]} {[%emt 00:00:28]} Rxh3+ {[%clk 00:00:15]} {[%emt
00:00:02]} 0-1

[Event "MČR v rapid šachu družstev 2019"]
[Site "Teplice, Czech Republic"]
[Date "2019.09.15"]
[Round "5.14"]
[White "Burdalev, Kirill"]
[Black "Sorm, Daniel"]
[Result "0-1"]
[TimeControl "15 min. + 5s"]
[WhiteElo "2336"]
[BlackElo "2313"]

1. d4 {[%clk 00:15:08]} {[%emt 00:00:01]} d5 {[%clk 00:15:09]} {[%emt
00:00:01]} 2. Bf4 {[%clk 00:15:12]} {[%emt 00:00:01]} c5 {[%clk 00:15:11]}
{[%emt 00:00:03]} 3. e3 {[%clk 00:15:16]} {[%emt 00:00:01]} Nf6 {[%clk
00:15:06]} {[%emt 00:00:09]} 4. Nf3 {[%clk 00:15:07]} {[%emt 00:00:15]} Nc6
{[%clk 00:15:08]} {[%emt 00:00:03]} 5. Nbd2 {[%clk 00:15:09]} {[%emt 00:00:03]}
Nh5 {[%clk 00:14:32]} {[%emt 00:00:41]} 6. Be5 {[%clk 00:13:35]} {[%emt
00:01:39]} f6 {[%clk 00:14:08]} {[%emt 00:00:29]} 7. Bg3 {[%clk 00:13:31]}
{[%emt 00:00:10]} Nxg3 {[%clk 00:13:30]} {[%emt 00:00:43]} 8. hxg3 {[%clk
00:13:35]} {[%emt 00:00:01]} e6 {[%clk 00:12:41]} {[%emt 00:00:54]} 9. Bd3
{[%clk 00:13:16]} {[%emt 00:00:24]} f5 {[%clk 00:12:23]} {[%emt 00:00:23]} 10.
Nh4 {[%clk 00:11:13]} {[%emt 00:02:07]} c4 {[%clk 00:10:53]} {[%emt 00:01:34]}
11. Qh5+ {[%clk 00:10:16]} {[%emt 00:01:02]} Kd7 {[%clk 00:10:32]} {[%emt
00:00:26]} 12. Be2 {[%clk 00:09:31]} {[%emt 00:00:51]} Ne7 {[%clk 00:09:39]}
{[%emt 00:00:58]} 13. Ndf3 {[%clk 00:09:20]} {[%emt 00:00:15]} Kc7 {[%clk
00:07:32]} {[%emt 00:02:13]} 14. Ne5 {[%clk 00:09:23]} {[%emt 00:00:03]} Bd7
{[%clk 00:05:59]} {[%emt 00:01:37]} 15. Nf7 {[%clk 00:09:24]} {[%emt 00:00:04]}
Be8 {[%clk 00:06:03]} {[%emt 00:00:01]} 16. Nxd8 {[%clk 00:09:27]} {[%emt
00:00:02]} Bxh5 {[%clk 00:06:05]} {[%emt 00:00:02]} 17. Nxe6+ {[%clk 00:09:30]}
{[%emt 00:00:02]} Kd6 {[%clk 00:06:03]} {[%emt 00:00:07]} 18. Nxf8 {[%clk
00:07:59]} {[%emt 00:01:37]} Bxe2 {[%clk 00:05:57]} {[%emt 00:00:11]} 19. Nxh7
{[%clk 00:07:57]} {[%emt 00:00:07]} Bh5 {[%clk 00:05:01]} {[%emt 00:01:00]} 20.
Ng5 {[%clk 00:08:01]} {[%emt 00:00:02]} b5 {[%clk 00:03:27]} {[%emt 00:01:39]}
21. Kd2 {[%clk 00:08:04]} {[%emt 00:00:01]} b4 {[%clk 00:03:26]} {[%emt
00:00:05]} 22. Nhf3 {[%clk 00:08:08]} {[%emt 00:00:01]} Nc6 {[%clk 00:03:09]}
{[%emt 00:00:22]} 23. Rh4 {[%clk 00:07:48]} {[%emt 00:00:25]} Bg6 {[%clk
00:02:54]} {[%emt 00:00:20]} 24. Rxh8 {[%clk 00:07:32]} {[%emt 00:00:22]} Rxh8
{[%clk 00:02:58]} {[%emt 00:00:01]} 25. Nh4 {[%clk 00:07:36]} {[%emt 00:00:01]}
Rh6 {[%clk 00:02:47]} {[%emt 00:00:15]} 26. a3 {[%clk 00:06:11]} {[%emt
00:01:30]} b3 {[%clk 00:02:44]} {[%emt 00:00:08]} 27. cxb3 {[%clk 00:05:35]}
{[%emt 00:00:41]} Na5 {[%clk 00:02:47]} {[%emt 00:00:02]} 28. Kc3 {[%clk
00:05:23]} {[%emt 00:00:17]} Nxb3 {[%clk 00:02:47]} {[%emt 00:00:04]} 29. Rh1
{[%clk 00:05:23]} {[%emt 00:00:05]} Ke7 {[%clk 00:02:03]} {[%emt 00:00:50]} 30.
Nxg6+ {[%clk 00:04:51]} {[%emt 00:00:37]} Rxg6 {[%clk 00:02:06]} {[%emt
00:00:02]} 31. Nf3 {[%clk 00:04:38]} {[%emt 00:00:18]} Rb6 {[%clk 00:01:44]}
{[%emt 00:00:27]} 32. Ne5 {[%clk 00:03:54]} {[%emt 00:00:48]} Rb7 {[%clk
00:01:18]} {[%emt 00:00:31]} 33. Ng6+ {[%clk 00:03:17]} {[%emt 00:00:42]} Kd6
{[%clk 00:01:00]} {[%emt 00:00:23]} 34. Nf4 {[%clk 00:02:48]} {[%emt 00:00:35]}
a5 {[%clk 00:00:52]} {[%emt 00:00:13]} 35. Rh5 {[%clk 00:02:19]} {[%emt
00:00:33]} Na1 {[%clk 00:00:30]} {[%emt 00:00:27]} 36. Rxf5 {[%clk 00:00:49]}
{[%emt 00:01:36]} Rb3+ {[%clk 00:00:32]} {[%emt 00:00:03]} 37. Kd2 {[%clk
00:00:54]} {[%emt 00:00:01]} Rxb2+ {[%clk 00:00:36]} 38. Kc1 {[%clk 00:00:40]}
{[%emt 00:00:19]} c3 {[%clk 00:00:24]} {[%emt 00:00:17]} 39. Rxd5+ {[%clk
00:00:43]} {[%emt 00:00:01]} Ke7 {[%clk 00:00:23]} {[%emt 00:00:05]} 40. Nd3
{[%clk 00:00:33]} {[%emt 00:00:16]} Nb3+ {[%clk 00:00:13]} {[%emt 00:00:16]} 41.
Kd1 {[%clk 00:00:35]} {[%emt 00:00:02]} Rd2+ {[%clk 00:00:08]} {[%emt
00:00:09]} 42. Ke1 {[%clk 00:00:39]} Rxd3 {[%clk 00:00:11]} {[%emt 00:00:03]}
43. Re5+ {[%clk 00:00:24]} {[%emt 00:00:21]} Kf6 {[%clk 00:00:13]} {[%emt
00:00:02]} 44. Ke2 {[%clk 00:00:24]} {[%emt 00:00:05]} Rd2+ {[%clk 00:00:13]}
{[%emt 00:00:05]} 45. Ke1 {[%clk 00:00:25]} {[%emt 00:00:04]} c2 {[%clk
00:00:14]} {[%emt 00:00:03]} 46. Rc5 {[%clk 00:00:30]} {[%emt 00:00:01]} Rd1+
{[%clk 00:00:17]} {[%emt 00:00:02]} 47. Ke2 {[%clk 00:00:34]} {[%emt 00:00:01]}
c1=Q {[%clk 00:00:21]} 0-1

[Event "MČR v rapid šachu družstev 2019"]
[Site "Teplice, Czech Republic"]
[Date "2019.09.15"]
[Round "5.15"]
[White "Strasil, Pavel"]
[Black "Pribyl, Josef"]
[Result "1-0"]
[TimeControl "15 min. + 5s"]
[WhiteElo "2097"]
[BlackElo "2285"]

1. Nf3 {[%emt 00:12:30]} Nf6 {[%emt 00:00:03]} 2. c4 e6 {[%emt 00:00:04]} 3. d4
{[%emt 00:00:06]} b6 {[%emt 00:00:04]} 4. g3 {[%emt 00:00:04]} Bb7 5. Bg2 c5
{[%emt 00:00:06]} 6. O-O {[%emt 00:00:33]} Be7 {[%emt 00:00:10]} 7. Nc3 {[%emt
00:00:03]} cxd4 {[%emt 00:00:04]} 8. Nxd4 {[%emt 00:00:05]} Bxg2 9. Kxg2 O-O
{[%emt 00:00:04]} 10. e4 {[%emt 00:00:12]} Qc8 {[%emt 00:00:17]} 11. Qe2 {[%emt
00:00:12]} Nc6 {[%emt 00:00:07]} 12. Be3 {[%emt 00:00:29]} a6 {[%emt 00:00:28]}
13. Rac1 {[%emt 00:00:11]} Nxd4 {[%emt 00:00:06]} 14. Bxd4 {[%emt 00:00:03]}
Qc6 {[%emt 00:00:04]} 15. f3 {[%emt 00:00:11]} Rfc8 {[%emt 00:00:09]} 16. b3
{[%emt 00:00:04]} b5 {[%emt 00:00:10]} 17. e5 {[%emt 00:01:22]} Ne8 {[%emt
00:00:21]} 18. c5 {[%emt 00:01:29]} f5 {[%emt 00:00:19]} 19. exf6 {[%emt
00:01:20]} Bxf6 {[%emt 00:00:02]} 20. Bxf6 {[%emt 00:00:06]} Nxf6 {[%emt
00:00:01]} 21. Ne4 {[%emt 00:00:06]} Nxe4 {[%emt 00:00:16]} 22. fxe4 {[%emt
00:00:15]} a5 {[%emt 00:00:19]} 23. a3 {[%emt 00:00:40]} b4 {[%emt 00:00:18]}
24. a4 {[%emt 00:00:06]} Rf8 {[%emt 00:00:41]} 25. Qe3 {[%emt 00:00:59]} Rxf1
{[%emt 00:01:00]} 26. Rxf1 {[%emt 00:00:03]} Rc8 {[%emt 00:00:04]} 27. Qf4
{[%emt 00:01:11]} h6 {[%emt 00:00:02]} 28. Qf7+ {[%emt 00:01:13]} Kh8 {[%emt
00:00:01]} 29. Rf4 {[%emt 00:00:03]} Qxc5 {[%emt 00:00:55]} 30. Qxd7 {[%emt
00:00:05]} Qc2+ {[%emt 00:00:33]} 31. Kh3 {[%emt 00:00:07]} Qc6 {[%emt
00:00:19]} 32. Rf8+ {[%emt 00:00:20]} Qc7 {[%emt 00:00:09]} 1-0